{"text_format":"3","workbook":"xlsx","n_sheets":6,"sheets":["Tableau de bord","Ventes","Revenus","Dépenses","Taxes","Catégories"],"not_rendered":{"images":1,"external_links":1,"defined_names":34},"read":"whole","date_system":"1900"}

{"sheet":"Tableau de bord","index":0,"n_rows":19,"n_cols":8,"rows_kept":19,"merged":[[0,2,0,4],[0,6,3,7],[4,1,4,7]]}
[null,"Compte de résultat","Pour [mois ou année] se terminant le [mois-année-jour]"]
[null,"Nom de la société","Exprimé en milliers"]
[null,"Marge brute actuelle  [L/J]",{"$f":"IFERROR(IF(Total_Marge_Brute=0,\"-\",Total_Marge_Brute/Total_Recettes_Ventes),\"-\")","v":"-"}]
[null,"Bénéfices actuels sur les ventes  [T/J]",{"$f":"IFERROR(IF(Résultat_net=0,\"-\",Résultat_net/Total_Recettes_Ventes),\"-\")","v":"-"}]
[null,"Ne modifiez pas les catégories dans cette feuille de calcul, car cela pourrait avoir une incidence sur les formules. Utilisez la feuille de calcul Catégorie pour ajouter des catégories et mettre à jour les feuilles de calcul correspondantes en fonction de vos entrées. Cette feuille de calcul est mise à jour automatiquement."]
[null,"Résumé","Total de la période précédente","Budget total","Total actuel\nPériode","Total de la période actuelle en pourcentage des ventes","Pourcentage total de changement par rapport à la période précédente","Pourcentage total de changement par rapport au budget"]
[null,"Total des recettes de ventes  [J]",{"$f":"SUMIFS(RecettesVente[Période précédente],RecettesVente[Type de recette],\"Recettes de ventes\")","v":0},{"$f":"SUMIFS(RecettesVente[Budget],RecettesVente[Type de recette],\"Recettes de ventes\")","v":0},{"$f":"SUMIFS(RecettesVente[Période actuelle],RecettesVente[Type de recette],\"Recettes de ventes\")","v":0},{"$f":"SUMIFS(RecettesVente[Période actuelle en pourcentage des ventes],RecettesVente[Type de recette],\"Recettes de ventes\")","v":{"v":0,"d":"0.00%"}},{"$f":"SUMIFS(RecettesVente[Pourcentage de changement par rapport à la période précédente],RecettesVente[Type de recette],\"Recettes de ventes\")","v":{"v":0,"d":"0.00%"}},{"$f":"SUMIFS(RecettesVente[Pourcentage de changement par rapport au budget],RecettesVente[Type de recette],\"Recettes de ventes\")","v":{"v":0,"d":"0.00%"}}]
[null,"Coût total des ventes  [K]",{"$f":"SUMIFS(RecettesVente[Période précédente],RecettesVente[Type de recette],\"Coût des ventes\")","v":0},{"$f":"SUMIFS(RecettesVente[Budget],RecettesVente[Type de recette],\"Coût des ventes\")","v":0},{"$f":"SUMIFS(RecettesVente[Période actuelle],RecettesVente[Type de recette],\"Coût des ventes\")","v":0},{"$f":"SUMIFS(RecettesVente[Période actuelle en pourcentage des ventes],RecettesVente[Type de recette],\"Coût des ventes\")","v":{"v":0,"d":"0.00%"}},{"$f":"SUMIFS(RecettesVente[Pourcentage de changement par rapport à la période précédente],RecettesVente[Type de recette],\"Coût des ventes\")","v":{"v":0,"d":"0.00%"}},{"$f":"SUMIFS(RecettesVente[Pourcentage de changement par rapport au budget],RecettesVente[Type de recette],\"Coût des ventes\")","v":{"v":0,"d":"0.00%"}}]
[null,"Total des dépenses de ventes et marketing  [M]",{"$f":"SUMIFS(ChargesExploitation[Période précédente],ChargesExploitation[Type de dépense],\"Ventes et marketing\")","v":0},{"$f":"SUMIFS(ChargesExploitation[Budget],ChargesExploitation[Type de dépense],\"Ventes et marketing\")","v":0},{"$f":"SUMIFS(ChargesExploitation[Période actuelle],ChargesExploitation[Type de dépense],\"Ventes et marketing\")","v":0},{"$f":"SUMIFS(ChargesExploitation[Période actuelle en pourcentage des ventes],ChargesExploitation[Type de dépense],\"Ventes et marketing\")","v":{"v":0,"d":"0.00%"}},{"$f":"SUMIFS(ChargesExploitation[Pourcentage de changement par rapport à la période précédente],ChargesExploitation[Type de dépense],\"Ventes et marketing\")","v":{"v":0,"d":"0.00%"}},{"$f":"SUMIFS(ChargesExploitation[Pourcentage de changement par rapport au budget],ChargesExploitation[Type de dépense],\"Ventes et marketing\")","v":{"v":0,"d":"0.00%"}}]
[null,"Total des dépenses de recherche et développement  [N]",{"$f":"SUMIFS(ChargesExploitation[Période précédente],ChargesExploitation[Type de dépense],\"Recherche et développement\")","v":0},{"$f":"SUMIFS(ChargesExploitation[Budget],ChargesExploitation[Type de dépense],\"Recherche et développement\")","v":0},{"$f":"SUMIFS(ChargesExploitation[Période actuelle],ChargesExploitation[Type de dépense],\"Recherche et développement\")","v":0},{"$f":"SUMIFS(ChargesExploitation[Période actuelle en pourcentage des ventes],ChargesExploitation[Type de dépense],\"Recherche et développement\")","v":{"v":0,"d":"0.00%"}},{"$f":"SUMIFS(ChargesExploitation[Pourcentage de changement par rapport à la période précédente],ChargesExploitation[Type de dépense],\"Recherche et développement\")","v":{"v":0,"d":"0.00%"}},{"$f":"SUMIFS(ChargesExploitation[Pourcentage de changement par rapport au budget],ChargesExploitation[Type de dépense],\"Recherche et développement\")","v":{"v":0,"d":"0.00%"}}]
[null,"Total des frais généraux et d’administration  [O]",{"$f":"SUMIFS(ChargesExploitation[Période précédente],ChargesExploitation[Type de dépense],\"Frais généraux et d’administration\")","v":0},{"$f":"SUMIFS(ChargesExploitation[Budget],ChargesExploitation[Type de dépense],\"Frais généraux et d’administration\")","v":0},{"$f":"SUMIFS(ChargesExploitation[Période actuelle],ChargesExploitation[Type de dépense],\"Frais généraux et d’administration\")","v":0},{"$f":"SUMIFS(ChargesExploitation[Période actuelle en pourcentage des ventes],ChargesExploitation[Type de dépense],\"Frais généraux et d’administration\")","v":{"v":0,"d":"0.00%"}},{"$f":"SUMIFS(ChargesExploitation[Pourcentage de changement par rapport à la période précédente],ChargesExploitation[Type de dépense],\"Frais généraux et d’administration\")","v":{"v":0,"d":"0.00%"}},{"$f":"SUMIFS(ChargesExploitation[Pourcentage de changement par rapport au budget],ChargesExploitation[Type de dépense],\"Frais généraux et d’administration\")","v":{"v":0,"d":"0.00%"}}]
[null,"Total des autres charges d’exploitation  [P]",{"$f":"ChargesExploitation[[#Totals],[Période précédente]]-SUM(C9:C11)","v":0},{"$f":"ChargesExploitation[[#Totals],[Budget]]-SUM(D9:D11)","v":0},{"$f":"ChargesExploitation[[#Totals],[Période actuelle]]-SUM(E9:E11)","v":0},{"$f":"ChargesExploitation[[#Totals],[Période actuelle en pourcentage des ventes]]-SUM(F9:F11)","v":{"v":0,"d":"0.00%"}},{"$f":"ChargesExploitation[[#Totals],[Pourcentage de changement par rapport à la période précédente]]-SUM(G9:G11)","v":{"v":0,"d":"0.00%"}},{"$f":"ChargesExploitation[[#Totals],[Pourcentage de changement par rapport au budget]]-SUM(H9:H11)","v":{"v":0,"d":"0.00%"}}]
[null,"Autres revenus  [S]",{"$f":"Revenus[[#Totals],[Période précédente]]","v":0},{"$f":"Revenus[[#Totals],[Budget]]","v":0},{"$f":"Revenus[[#Totals],[Période actuelle]]","v":0},{"$f":"Revenus[[#Totals],[Période actuelle en pourcentage des ventes]]","v":{"v":0,"d":"0.00%"}},{"$f":"Revenus[[#Totals],[Pourcentage de changement par rapport à la période précédente]]","v":{"v":0,"d":"0.00%"}},{"$f":"Revenus[[#Totals],[Pourcentage de changement par rapport au budget]]","v":{"v":0,"d":"0.00%"}}]
[null,"Total des taxes  [T]",{"$f":"Taxes[[#Totals],[Période précédente]]","v":0},{"$f":"Taxes[[#Totals],[Budget]]","v":0},{"$f":"Taxes[[#Totals],[Période actuelle]]","v":0},{"$f":"Taxes[[#Totals],[Période actuelle en pourcentage des ventes]]","v":{"v":0,"d":"0.00%"}},{"$f":"Taxes[[#Totals],[Pourcentage de changement par rapport à la période précédente]]","v":{"v":0,"d":"0.00%"}},{"$f":"Taxes[[#Totals],[Pourcentage de changement par rapport au budget]]","v":{"v":0,"d":"0.00%"}}]
[]
[null,"Marge brute  [L=J-K]",{"$f":"IFERROR(C7-C8,\"-\")","v":0},{"$f":"IFERROR(D7-D8,\"-\")","v":0},{"$f":"IFERROR(Total_Recettes_Ventes-Total_Frais_Ventes,\"-\")","v":0},{"$f":"IFERROR(IF(Total_Recettes_Ventes=0,\"0,00%\",Total_Marge_Brute/Total_Recettes_Ventes),\"-\")","v":"0,00%"},{"$f":"IFERROR(IF(C16=Total_Marge_Brute,0,IF(Total_Marge_Brute>C16,ABS((Total_Marge_Brute/C16)-1),IF(AND(Total_Marge_Brute<C16,C16<0),-((Total_Marge_Brute/C16)-1),(Total_Marge_Brute/C16)-1))),\"-\")","v":{"v":0,"d":"0.00%"}},{"$f":"IFERROR(IF(D16=Total_Marge_Brute,0,IF(Total_Marge_Brute>D16,ABS((Total_Marge_Brute/D16)-1),IF(AND(Total_Marge_Brute<D16,D16<0),-((Total_Marge_Brute/D16)-1),(Total_Marge_Brute/D16)-1))),\"-\")","v":{"v":0,"d":"0.00%"}}]
[null,"Total des charges d’exploitation  [Q=M+N+O+P]",{"$f":"IFERROR(C9+C10+C11+C12,\"-\")","v":0},{"$f":"IFERROR(D9+D10+D11+D12,\"-\")","v":0},{"$f":"IFERROR(Total_Ventes_et_Marketing+Total_Recherche_et_Réveloppement+Total_Frais_Généraux_et_Administration+Total_Autres_Dépenses,\"-\")","v":0},{"$f":"IFERROR(IF(Total_Recettes_Ventes=0,\"0,00%\",Total_Charges_Exploitation/Total_Recettes_Ventes),\"-\")","v":"0,00%"},{"$f":"IFERROR(IF(C17=Total_Charges_Exploitation,0,IF(Total_Charges_Exploitation>C17,ABS((Total_Charges_Exploitation/C17)-1),IF(AND(Total_Charges_Exploitation<C17,C17<0),-((Total_Charges_Exploitation/C17)-1),(Total_Charges_Exploitation/C17)-1))),\"-\")","v":{"v":0,"d":"0.00%"}},{"$f":"IFERROR(IF(D17=Total_Charges_Exploitation,0,IF(Total_Charges_Exploitation>D17,ABS((Total_Charges_Exploitation/D17)-1),IF(AND(Total_Charges_Exploitation<D17,D17<0),-((Total_Charges_Exploitation/D17)-1),(Total_Charges_Exploitation/D17)-1))),\"-\")","v":{"v":0,"d":"0.00%"}}]
[null,"Bénéfice d’exploitation  [R=L-Q]",{"$f":"IFERROR(C16-C17,\"-\")","v":0},{"$f":"IFERROR(D16-D17,\"-\")","v":0},{"$f":"IFERROR(Total_Marge_Brute-Total_Charges_Exploitation,\"-\")","v":0},{"$f":"IFERROR(IF(Total_Recettes_Ventes=0,\"0,00%\",Total_Revenus_Opérations/Total_Recettes_Ventes),\"-\")","v":"0,00%"},{"$f":"IFERROR(IF(C18=Total_Revenus_Opérations,0,IF(Total_Revenus_Opérations>C18,ABS((Total_Revenus_Opérations/C18)-1),IF(AND(Total_Revenus_Opérations<C18,C18<0),-((Total_Revenus_Opérations/C18)-1),(Total_Revenus_Opérations/C18)-1))),\"-\")","v":{"v":0,"d":"0.00%"}},{"$f":"IFERROR(IF(D18=Total_Revenus_Opérations,0,IF(Total_Revenus_Opérations>D18,ABS((Total_Revenus_Opérations/D18)-1),IF(AND(Total_Revenus_Opérations<D18,D18<0),-((Total_Revenus_Opérations/D18)-1),(Total_Revenus_Opérations/D18)-1))),\"-\")","v":{"v":0,"d":"0.00%"}}]
[null,"Résultat net  [U=R+S-T]",{"$f":"IFERROR(C18+C13-C14,\"-\")","v":0},{"$f":"IFERROR(D18+D13-D14,\"-\")","v":0},{"$f":"Total_Revenus_Opérations+Total_Autres_Revenus-Total_Taxes","v":0},{"$f":"IFERROR(IF(Total_Recettes_Ventes=0,\"0,00%\",Résultat_net/Total_Recettes_Ventes),\"-\")","v":"0,00%"},{"$f":"IFERROR(IF(C19=Résultat_net,0,IF(Résultat_net>C19,ABS((Résultat_net/C19)-1),IF(AND(Résultat_net<C19,C19<0),-((Résultat_net/C19)-1),(Résultat_net/C19)-1))),\"-\")","v":{"v":0,"d":"0.00%"}},{"$f":"IFERROR(IF(D19=Résultat_net,0,IF(Résultat_net>D19,ABS((Résultat_net/D19)-1),IF(AND(Résultat_net<D19,D19<0),-((Résultat_net/D19)-1),(Résultat_net/D19)-1))),\"-\")","v":{"v":0,"d":"0.00%"}}]

{"sheet":"Ventes","index":1,"n_rows":13,"n_cols":9,"rows_kept":13,"merged":[[0,7,2,8]]}
[null,{"$f":"Titre_Classeur","v":"Compte de résultat"}]
[null,{"$f":"Nom_société","v":"Nom de la société"},"Exprimé en milliers"]
[null,"Recettes de ventes",{"$f":"IFERROR(Recettes_ventes,\"-\")","v":0}]
[null,"Type de recette","Description","Période précédente","Budget","Période actuelle","Période actuelle en pourcentage des ventes","Pourcentage de changement par rapport à la période précédente","Pourcentage de changement par rapport au budget"]
[null,"Recettes de ventes","Produit/Service 1",{"$nulls":3},{"$f":"IFERROR(IF(RecettesVente[[#Data],[#Totals],[Période actuelle]]=0,\"-\",RecettesVente[Période actuelle]/Recettes_ventes),\"-\")","v":"-"},{"$f":"IFERROR(IF(RecettesVente[[#This Row],[Période précédente]]=RecettesVente[[#This Row],[Période actuelle]],0,IF(RecettesVente[[#This Row],[Période actuelle]]>RecettesVente[[#This Row],[Période précédente]],ABS((RecettesVente[[#This Row],[Période actuelle]]/RecettesVente[[#This Row],[Période précédente]])-1),IF(AND(RecettesVente[[#This Row],[Période actuelle]]<RecettesVente[[#This Row],[Période précédente]],RecettesVente[[#This Row],[Période précédente]]<0),-((RecettesVente[[#This Row],[Période actuelle]]/RecettesVente[[#This Row],[Période précédente]])-1),(RecettesVente[[#This Row],[Période actuelle]]/RecettesVente[[#This Row],[Période précédente]])-1))),\"-\")","v":{"v":0,"d":"0.00%"}},{"$f":"IFERROR(IF(RecettesVente[[#This Row],[Budget]]=RecettesVente[[#This Row],[Période actuelle]],0,IF(RecettesVente[[#This Row],[Période actuelle]]>RecettesVente[[#This Row],[Budget]],ABS((RecettesVente[[#This Row],[Période actuelle]]/RecettesVente[[#This Row],[Budget]])-1),IF(AND(RecettesVente[[#This Row],[Période actuelle]]<RecettesVente[[#This Row],[Budget]],RecettesVente[[#This Row],[Budget]]<0),-((RecettesVente[[#This Row],[Période actuelle]]/RecettesVente[[#This Row],[Budget]])-1),(RecettesVente[[#This Row],[Période actuelle]]/RecettesVente[[#This Row],[Budget]])-1))),\"-\")","v":{"v":0,"d":"0.00%"}}]
[null,"Recettes de ventes","Produit/Service 2",{"$nulls":3},{"$f":"IFERROR(IF(RecettesVente[[#Data],[#Totals],[Période actuelle]]=0,\"-\",RecettesVente[Période actuelle]/Recettes_ventes),\"-\")","v":"-"},{"$f":"IFERROR(IF(RecettesVente[[#This Row],[Période précédente]]=RecettesVente[[#This Row],[Période actuelle]],0,IF(RecettesVente[[#This Row],[Période actuelle]]>RecettesVente[[#This Row],[Période précédente]],ABS((RecettesVente[[#This Row],[Période actuelle]]/RecettesVente[[#This Row],[Période précédente]])-1),IF(AND(RecettesVente[[#This Row],[Période actuelle]]<RecettesVente[[#This Row],[Période précédente]],RecettesVente[[#This Row],[Période précédente]]<0),-((RecettesVente[[#This Row],[Période actuelle]]/RecettesVente[[#This Row],[Période précédente]])-1),(RecettesVente[[#This Row],[Période actuelle]]/RecettesVente[[#This Row],[Période précédente]])-1))),\"-\")","v":{"v":0,"d":"0.00%"}},{"$f":"IFERROR(IF(RecettesVente[[#This Row],[Budget]]=RecettesVente[[#This Row],[Période actuelle]],0,IF(RecettesVente[[#This Row],[Période actuelle]]>RecettesVente[[#This Row],[Budget]],ABS((RecettesVente[[#This Row],[Période actuelle]]/RecettesVente[[#This Row],[Budget]])-1),IF(AND(RecettesVente[[#This Row],[Période actuelle]]<RecettesVente[[#This Row],[Budget]],RecettesVente[[#This Row],[Budget]]<0),-((RecettesVente[[#This Row],[Période actuelle]]/RecettesVente[[#This Row],[Budget]])-1),(RecettesVente[[#This Row],[Période actuelle]]/RecettesVente[[#This Row],[Budget]])-1))),\"-\")","v":{"v":0,"d":"0.00%"}}]
[null,"Recettes de ventes","Produit/Service 3",{"$nulls":3},{"$f":"IFERROR(IF(RecettesVente[[#Data],[#Totals],[Période actuelle]]=0,\"-\",RecettesVente[Période actuelle]/Recettes_ventes),\"-\")","v":"-"},{"$f":"IFERROR(IF(RecettesVente[[#This Row],[Période précédente]]=RecettesVente[[#This Row],[Période actuelle]],0,IF(RecettesVente[[#This Row],[Période actuelle]]>RecettesVente[[#This Row],[Période précédente]],ABS((RecettesVente[[#This Row],[Période actuelle]]/RecettesVente[[#This Row],[Période précédente]])-1),IF(AND(RecettesVente[[#This Row],[Période actuelle]]<RecettesVente[[#This Row],[Période précédente]],RecettesVente[[#This Row],[Période précédente]]<0),-((RecettesVente[[#This Row],[Période actuelle]]/RecettesVente[[#This Row],[Période précédente]])-1),(RecettesVente[[#This Row],[Période actuelle]]/RecettesVente[[#This Row],[Période précédente]])-1))),\"-\")","v":{"v":0,"d":"0.00%"}},{"$f":"IFERROR(IF(RecettesVente[[#This Row],[Budget]]=RecettesVente[[#This Row],[Période actuelle]],0,IF(RecettesVente[[#This Row],[Période actuelle]]>RecettesVente[[#This Row],[Budget]],ABS((RecettesVente[[#This Row],[Période actuelle]]/RecettesVente[[#This Row],[Budget]])-1),IF(AND(RecettesVente[[#This Row],[Période actuelle]]<RecettesVente[[#This Row],[Budget]],RecettesVente[[#This Row],[Budget]]<0),-((RecettesVente[[#This Row],[Période actuelle]]/RecettesVente[[#This Row],[Budget]])-1),(RecettesVente[[#This Row],[Période actuelle]]/RecettesVente[[#This Row],[Budget]])-1))),\"-\")","v":{"v":0,"d":"0.00%"}}]
[null,"Recettes de ventes","Produit/Service 4",{"$nulls":3},{"$f":"IFERROR(IF(RecettesVente[[#Data],[#Totals],[Période actuelle]]=0,\"-\",RecettesVente[Période actuelle]/Recettes_ventes),\"-\")","v":"-"},{"$f":"IFERROR(IF(RecettesVente[[#This Row],[Période précédente]]=RecettesVente[[#This Row],[Période actuelle]],0,IF(RecettesVente[[#This Row],[Période actuelle]]>RecettesVente[[#This Row],[Période précédente]],ABS((RecettesVente[[#This Row],[Période actuelle]]/RecettesVente[[#This Row],[Période précédente]])-1),IF(AND(RecettesVente[[#This Row],[Période actuelle]]<RecettesVente[[#This Row],[Période précédente]],RecettesVente[[#This Row],[Période précédente]]<0),-((RecettesVente[[#This Row],[Période actuelle]]/RecettesVente[[#This Row],[Période précédente]])-1),(RecettesVente[[#This Row],[Période actuelle]]/RecettesVente[[#This Row],[Période précédente]])-1))),\"-\")","v":{"v":0,"d":"0.00%"}},{"$f":"IFERROR(IF(RecettesVente[[#This Row],[Budget]]=RecettesVente[[#This Row],[Période actuelle]],0,IF(RecettesVente[[#This Row],[Période actuelle]]>RecettesVente[[#This Row],[Budget]],ABS((RecettesVente[[#This Row],[Période actuelle]]/RecettesVente[[#This Row],[Budget]])-1),IF(AND(RecettesVente[[#This Row],[Période actuelle]]<RecettesVente[[#This Row],[Budget]],RecettesVente[[#This Row],[Budget]]<0),-((RecettesVente[[#This Row],[Période actuelle]]/RecettesVente[[#This Row],[Budget]])-1),(RecettesVente[[#This Row],[Période actuelle]]/RecettesVente[[#This Row],[Budget]])-1))),\"-\")","v":{"v":0,"d":"0.00%"}}]
[null,"Coût des ventes","Produit/Service 1",{"$nulls":3},{"$f":"IFERROR(IF(RecettesVente[[#Data],[#Totals],[Période actuelle]]=0,\"-\",RecettesVente[Période actuelle]/Recettes_ventes),\"-\")","v":"-"},{"$f":"IFERROR(IF(RecettesVente[[#This Row],[Période précédente]]=RecettesVente[[#This Row],[Période actuelle]],0,IF(RecettesVente[[#This Row],[Période actuelle]]>RecettesVente[[#This Row],[Période précédente]],ABS((RecettesVente[[#This Row],[Période actuelle]]/RecettesVente[[#This Row],[Période précédente]])-1),IF(AND(RecettesVente[[#This Row],[Période actuelle]]<RecettesVente[[#This Row],[Période précédente]],RecettesVente[[#This Row],[Période précédente]]<0),-((RecettesVente[[#This Row],[Période actuelle]]/RecettesVente[[#This Row],[Période précédente]])-1),(RecettesVente[[#This Row],[Période actuelle]]/RecettesVente[[#This Row],[Période précédente]])-1))),\"-\")","v":{"v":0,"d":"0.00%"}},{"$f":"IFERROR(IF(RecettesVente[[#This Row],[Budget]]=RecettesVente[[#This Row],[Période actuelle]],0,IF(RecettesVente[[#This Row],[Période actuelle]]>RecettesVente[[#This Row],[Budget]],ABS((RecettesVente[[#This Row],[Période actuelle]]/RecettesVente[[#This Row],[Budget]])-1),IF(AND(RecettesVente[[#This Row],[Période actuelle]]<RecettesVente[[#This Row],[Budget]],RecettesVente[[#This Row],[Budget]]<0),-((RecettesVente[[#This Row],[Période actuelle]]/RecettesVente[[#This Row],[Budget]])-1),(RecettesVente[[#This Row],[Période actuelle]]/RecettesVente[[#This Row],[Budget]])-1))),\"-\")","v":{"v":0,"d":"0.00%"}}]
[null,"Coût des ventes","Produit/Service 2",{"$nulls":3},{"$f":"IFERROR(IF(RecettesVente[[#Data],[#Totals],[Période actuelle]]=0,\"-\",RecettesVente[Période actuelle]/Recettes_ventes),\"-\")","v":"-"},{"$f":"IFERROR(IF(RecettesVente[[#This Row],[Période précédente]]=RecettesVente[[#This Row],[Période actuelle]],0,IF(RecettesVente[[#This Row],[Période actuelle]]>RecettesVente[[#This Row],[Période précédente]],ABS((RecettesVente[[#This Row],[Période actuelle]]/RecettesVente[[#This Row],[Période précédente]])-1),IF(AND(RecettesVente[[#This Row],[Période actuelle]]<RecettesVente[[#This Row],[Période précédente]],RecettesVente[[#This Row],[Période précédente]]<0),-((RecettesVente[[#This Row],[Période actuelle]]/RecettesVente[[#This Row],[Période précédente]])-1),(RecettesVente[[#This Row],[Période actuelle]]/RecettesVente[[#This Row],[Période précédente]])-1))),\"-\")","v":{"v":0,"d":"0.00%"}},{"$f":"IFERROR(IF(RecettesVente[[#This Row],[Budget]]=RecettesVente[[#This Row],[Période actuelle]],0,IF(RecettesVente[[#This Row],[Période actuelle]]>RecettesVente[[#This Row],[Budget]],ABS((RecettesVente[[#This Row],[Période actuelle]]/RecettesVente[[#This Row],[Budget]])-1),IF(AND(RecettesVente[[#This Row],[Période actuelle]]<RecettesVente[[#This Row],[Budget]],RecettesVente[[#This Row],[Budget]]<0),-((RecettesVente[[#This Row],[Période actuelle]]/RecettesVente[[#This Row],[Budget]])-1),(RecettesVente[[#This Row],[Période actuelle]]/RecettesVente[[#This Row],[Budget]])-1))),\"-\")","v":{"v":0,"d":"0.00%"}}]
[null,"Coût des ventes","Produit/Service 3",{"$nulls":3},{"$f":"IFERROR(IF(RecettesVente[[#Data],[#Totals],[Période actuelle]]=0,\"-\",RecettesVente[Période actuelle]/Recettes_ventes),\"-\")","v":"-"},{"$f":"IFERROR(IF(RecettesVente[[#This Row],[Période précédente]]=RecettesVente[[#This Row],[Période actuelle]],0,IF(RecettesVente[[#This Row],[Période actuelle]]>RecettesVente[[#This Row],[Période précédente]],ABS((RecettesVente[[#This Row],[Période actuelle]]/RecettesVente[[#This Row],[Période précédente]])-1),IF(AND(RecettesVente[[#This Row],[Période actuelle]]<RecettesVente[[#This Row],[Période précédente]],RecettesVente[[#This Row],[Période précédente]]<0),-((RecettesVente[[#This Row],[Période actuelle]]/RecettesVente[[#This Row],[Période précédente]])-1),(RecettesVente[[#This Row],[Période actuelle]]/RecettesVente[[#This Row],[Période précédente]])-1))),\"-\")","v":{"v":0,"d":"0.00%"}},{"$f":"IFERROR(IF(RecettesVente[[#This Row],[Budget]]=RecettesVente[[#This Row],[Période actuelle]],0,IF(RecettesVente[[#This Row],[Période actuelle]]>RecettesVente[[#This Row],[Budget]],ABS((RecettesVente[[#This Row],[Période actuelle]]/RecettesVente[[#This Row],[Budget]])-1),IF(AND(RecettesVente[[#This Row],[Période actuelle]]<RecettesVente[[#This Row],[Budget]],RecettesVente[[#This Row],[Budget]]<0),-((RecettesVente[[#This Row],[Période actuelle]]/RecettesVente[[#This Row],[Budget]])-1),(RecettesVente[[#This Row],[Période actuelle]]/RecettesVente[[#This Row],[Budget]])-1))),\"-\")","v":{"v":0,"d":"0.00%"}}]
[null,"Coût des ventes","Produit/Service 4",{"$nulls":3},{"$f":"IFERROR(IF(RecettesVente[[#Data],[#Totals],[Période actuelle]]=0,\"-\",RecettesVente[Période actuelle]/Recettes_ventes),\"-\")","v":"-"},{"$f":"IFERROR(IF(RecettesVente[[#This Row],[Période précédente]]=RecettesVente[[#This Row],[Période actuelle]],0,IF(RecettesVente[[#This Row],[Période actuelle]]>RecettesVente[[#This Row],[Période précédente]],ABS((RecettesVente[[#This Row],[Période actuelle]]/RecettesVente[[#This Row],[Période précédente]])-1),IF(AND(RecettesVente[[#This Row],[Période actuelle]]<RecettesVente[[#This Row],[Période précédente]],RecettesVente[[#This Row],[Période précédente]]<0),-((RecettesVente[[#This Row],[Période actuelle]]/RecettesVente[[#This Row],[Période précédente]])-1),(RecettesVente[[#This Row],[Période actuelle]]/RecettesVente[[#This Row],[Période précédente]])-1))),\"-\")","v":{"v":0,"d":"0.00%"}},{"$f":"IFERROR(IF(RecettesVente[[#This Row],[Budget]]=RecettesVente[[#This Row],[Période actuelle]],0,IF(RecettesVente[[#This Row],[Période actuelle]]>RecettesVente[[#This Row],[Budget]],ABS((RecettesVente[[#This Row],[Période actuelle]]/RecettesVente[[#This Row],[Budget]])-1),IF(AND(RecettesVente[[#This Row],[Période actuelle]]<RecettesVente[[#This Row],[Budget]],RecettesVente[[#This Row],[Budget]]<0),-((RecettesVente[[#This Row],[Période actuelle]]/RecettesVente[[#This Row],[Budget]])-1),(RecettesVente[[#This Row],[Période actuelle]]/RecettesVente[[#This Row],[Budget]])-1))),\"-\")","v":{"v":0,"d":"0.00%"}}]
[null,"Total des recettes de ventes",null,{"$f":"SUBTOTAL(109,RecettesVente[Période précédente])","v":0},{"$f":"SUBTOTAL(109,RecettesVente[Budget])","v":0},{"$f":"SUBTOTAL(109,RecettesVente[Période actuelle])","v":0},{"$f":"SUBTOTAL(109,RecettesVente[Période actuelle en pourcentage des ventes])","v":{"v":0,"d":"0.00%"}},{"$f":"SUBTOTAL(109,RecettesVente[Pourcentage de changement par rapport à la période précédente])","v":{"v":0,"d":"0.00%"}},{"$f":"SUBTOTAL(109,RecettesVente[Pourcentage de changement par rapport au budget])","v":{"v":0,"d":"0.00%"}}]

{"sheet":"Revenus","index":2,"n_rows":7,"n_cols":9,"rows_kept":7,"merged":[[0,7,2,8]]}
[null,{"$f":"Titre_Classeur","v":"Compte de résultat"}]
[null,{"$f":"Nom_société","v":"Nom de la société"},"Exprimé en milliers"]
[null,"Revenus",{"$f":"IFERROR(Revenus[[#Totals],[Période actuelle]],\"-\")","v":0}]
[null,"Type de revenu","Description","Période précédente","Budget","Période actuelle","Période actuelle en pourcentage des ventes","Pourcentage de changement par rapport à la période précédente","Pourcentage de changement par rapport au budget"]
[null,"Revenus","Autres revenus",{"$nulls":3},{"$f":"IFERROR(IF(Recettes_ventes=0,\"-\",Revenus[Période actuelle]/Recettes_ventes),\"-\")","v":"-"},{"$f":"IFERROR(IF(Revenus[[#This Row],[Période précédente]]=Revenus[[#This Row],[Période actuelle]],0,IF(Revenus[[#This Row],[Période actuelle]]>Revenus[[#This Row],[Période précédente]],ABS((Revenus[[#This Row],[Période actuelle]]/Revenus[[#This Row],[Période précédente]])-1),IF(AND(Revenus[[#This Row],[Période actuelle]]<Revenus[[#This Row],[Période précédente]],Revenus[[#This Row],[Période précédente]]<0),-((Revenus[[#This Row],[Période actuelle]]/Revenus[[#This Row],[Période précédente]])-1),(Revenus[[#This Row],[Période actuelle]]/Revenus[[#This Row],[Période précédente]])-1))),\"-\")","v":{"v":0,"d":"0.00%"}},{"$f":"IFERROR(IF(Revenus[[#This Row],[Budget]]=Revenus[[#This Row],[Période actuelle]],0,IF(Revenus[[#This Row],[Période actuelle]]>Revenus[[#This Row],[Budget]],ABS((Revenus[[#This Row],[Période actuelle]]/Revenus[[#This Row],[Budget]])-1),IF(AND(Revenus[[#This Row],[Période actuelle]]<Revenus[[#This Row],[Budget]],Revenus[[#This Row],[Budget]]<0),-((Revenus[[#This Row],[Période actuelle]]/Revenus[[#This Row],[Budget]])-1),(Revenus[[#This Row],[Période actuelle]]/Revenus[[#This Row],[Budget]])-1))),\"-\")","v":{"v":0,"d":"0.00%"}}]
[{"$nulls":6},{"$f":"IFERROR(IF(Recettes_ventes=0,\"-\",Revenus[Période actuelle]/Recettes_ventes),\"-\")","v":"-"},{"$f":"IFERROR(IF(Revenus[[#This Row],[Période précédente]]=Revenus[[#This Row],[Période actuelle]],0,IF(Revenus[[#This Row],[Période actuelle]]>Revenus[[#This Row],[Période précédente]],ABS((Revenus[[#This Row],[Période actuelle]]/Revenus[[#This Row],[Période précédente]])-1),IF(AND(Revenus[[#This Row],[Période actuelle]]<Revenus[[#This Row],[Période précédente]],Revenus[[#This Row],[Période précédente]]<0),-((Revenus[[#This Row],[Période actuelle]]/Revenus[[#This Row],[Période précédente]])-1),(Revenus[[#This Row],[Période actuelle]]/Revenus[[#This Row],[Période précédente]])-1))),\"-\")","v":{"v":0,"d":"0.00%"}},{"$f":"IFERROR(IF(Revenus[[#This Row],[Budget]]=Revenus[[#This Row],[Période actuelle]],0,IF(Revenus[[#This Row],[Période actuelle]]>Revenus[[#This Row],[Budget]],ABS((Revenus[[#This Row],[Période actuelle]]/Revenus[[#This Row],[Budget]])-1),IF(AND(Revenus[[#This Row],[Période actuelle]]<Revenus[[#This Row],[Budget]],Revenus[[#This Row],[Budget]]<0),-((Revenus[[#This Row],[Période actuelle]]/Revenus[[#This Row],[Budget]])-1),(Revenus[[#This Row],[Période actuelle]]/Revenus[[#This Row],[Budget]])-1))),\"-\")","v":{"v":0,"d":"0.00%"}}]
[null,"Total des revenus de ventes",null,{"$f":"SUBTOTAL(109,Revenus[Période précédente])","v":0},{"$f":"SUBTOTAL(109,Revenus[Budget])","v":0},{"$f":"SUBTOTAL(109,Revenus[Période actuelle])","v":0},{"$f":"SUBTOTAL(109,Revenus[Période actuelle en pourcentage des ventes])","v":{"v":0,"d":"0.00%"}},{"$f":"SUBTOTAL(109,Revenus[Pourcentage de changement par rapport à la période précédente])","v":{"v":0,"d":"0.00%"}},{"$f":"SUBTOTAL(109,Revenus[Pourcentage de changement par rapport au budget])","v":{"v":0,"d":"0.00%"}}]

{"sheet":"Dépenses","index":3,"n_rows":25,"n_cols":9,"rows_kept":25,"merged":[[0,7,2,8]]}
[null,{"$f":"Titre_Classeur","v":"Compte de résultat"}]
[null,{"$f":"Nom_société","v":"Nom de la société"},"Exprimé en milliers"]
[null,"Charges d’exploitation",{"$f":"IFERROR(ChargesExploitation[[#Totals],[Période actuelle]],\"-\")","v":0}]
[null,"Type de dépense","Description","Période précédente","Budget","Période actuelle","Période actuelle en pourcentage des ventes","Pourcentage de changement par rapport à la période précédente","Pourcentage de changement par rapport au budget"]
[null,"Ventes et marketing","Publicité",{"$nulls":3},{"$f":"IFERROR(IF(Recettes_ventes=0,\"-\",ChargesExploitation[Période actuelle]/Recettes_ventes),\"-\")","v":"-"},{"$f":"IFERROR(IF(ChargesExploitation[[#This Row],[Période précédente]]=ChargesExploitation[[#This Row],[Période actuelle]],0,IF(ChargesExploitation[[#This Row],[Période actuelle]]>ChargesExploitation[[#This Row],[Période précédente]],ABS((ChargesExploitation[[#This Row],[Période actuelle]]/ChargesExploitation[[#This Row],[Période précédente]])-1),IF(AND(ChargesExploitation[[#This Row],[Période actuelle]]<ChargesExploitation[[#This Row],[Période précédente]],ChargesExploitation[[#This Row],[Période précédente]]<0),-((ChargesExploitation[[#This Row],[Période actuelle]]/ChargesExploitation[[#This Row],[Période précédente]])-1),(ChargesExploitation[[#This Row],[Période actuelle]]/ChargesExploitation[[#This Row],[Période précédente]])-1))),\"-\")","v":{"v":0,"d":"0.00%"}},{"$f":"IFERROR(IF(ChargesExploitation[[#This Row],[Budget]]=ChargesExploitation[[#This Row],[Période actuelle]],0,IF(ChargesExploitation[[#This Row],[Période actuelle]]>ChargesExploitation[[#This Row],[Budget]],ABS((ChargesExploitation[[#This Row],[Période actuelle]]/ChargesExploitation[[#This Row],[Budget]])-1),IF(AND(ChargesExploitation[[#This Row],[Période actuelle]]<ChargesExploitation[[#This Row],[Budget]],ChargesExploitation[[#This Row],[Budget]]<0),-((ChargesExploitation[[#This Row],[Période actuelle]]/ChargesExploitation[[#This Row],[Budget]])-1),(ChargesExploitation[[#This Row],[Période actuelle]]/ChargesExploitation[[#This Row],[Budget]])-1))),\"-\")","v":{"v":0,"d":"0.00%"}}]
[null,"Ventes et marketing","Marketing direct",{"$nulls":3},{"$f":"IFERROR(IF(Recettes_ventes=0,\"-\",ChargesExploitation[Période actuelle]/Recettes_ventes),\"-\")","v":"-"},{"$f":"IFERROR(IF(ChargesExploitation[[#This Row],[Période précédente]]=ChargesExploitation[[#This Row],[Période actuelle]],0,IF(ChargesExploitation[[#This Row],[Période actuelle]]>ChargesExploitation[[#This Row],[Période précédente]],ABS((ChargesExploitation[[#This Row],[Période actuelle]]/ChargesExploitation[[#This Row],[Période précédente]])-1),IF(AND(ChargesExploitation[[#This Row],[Période actuelle]]<ChargesExploitation[[#This Row],[Période précédente]],ChargesExploitation[[#This Row],[Période précédente]]<0),-((ChargesExploitation[[#This Row],[Période actuelle]]/ChargesExploitation[[#This Row],[Période précédente]])-1),(ChargesExploitation[[#This Row],[Période actuelle]]/ChargesExploitation[[#This Row],[Période précédente]])-1))),\"-\")","v":{"v":0,"d":"0.00%"}},{"$f":"IFERROR(IF(ChargesExploitation[[#This Row],[Budget]]=ChargesExploitation[[#This Row],[Période actuelle]],0,IF(ChargesExploitation[[#This Row],[Période actuelle]]>ChargesExploitation[[#This Row],[Budget]],ABS((ChargesExploitation[[#This Row],[Période actuelle]]/ChargesExploitation[[#This Row],[Budget]])-1),IF(AND(ChargesExploitation[[#This Row],[Période actuelle]]<ChargesExploitation[[#This Row],[Budget]],ChargesExploitation[[#This Row],[Budget]]<0),-((ChargesExploitation[[#This Row],[Période actuelle]]/ChargesExploitation[[#This Row],[Budget]])-1),(ChargesExploitation[[#This Row],[Période actuelle]]/ChargesExploitation[[#This Row],[Budget]])-1))),\"-\")","v":{"v":0,"d":"0.00%"}}]
[null,"Ventes et marketing","Autres dépenses (précisez)",{"$nulls":3},{"$f":"IFERROR(IF(Recettes_ventes=0,\"-\",ChargesExploitation[Période actuelle]/Recettes_ventes),\"-\")","v":"-"},{"$f":"IFERROR(IF(ChargesExploitation[[#This Row],[Période précédente]]=ChargesExploitation[[#This Row],[Période actuelle]],0,IF(ChargesExploitation[[#This Row],[Période actuelle]]>ChargesExploitation[[#This Row],[Période précédente]],ABS((ChargesExploitation[[#This Row],[Période actuelle]]/ChargesExploitation[[#This Row],[Période précédente]])-1),IF(AND(ChargesExploitation[[#This Row],[Période actuelle]]<ChargesExploitation[[#This Row],[Période précédente]],ChargesExploitation[[#This Row],[Période précédente]]<0),-((ChargesExploitation[[#This Row],[Période actuelle]]/ChargesExploitation[[#This Row],[Période précédente]])-1),(ChargesExploitation[[#This Row],[Période actuelle]]/ChargesExploitation[[#This Row],[Période précédente]])-1))),\"-\")","v":{"v":0,"d":"0.00%"}},{"$f":"IFERROR(IF(ChargesExploitation[[#This Row],[Budget]]=ChargesExploitation[[#This Row],[Période actuelle]],0,IF(ChargesExploitation[[#This Row],[Période actuelle]]>ChargesExploitation[[#This Row],[Budget]],ABS((ChargesExploitation[[#This Row],[Période actuelle]]/ChargesExploitation[[#This Row],[Budget]])-1),IF(AND(ChargesExploitation[[#This Row],[Période actuelle]]<ChargesExploitation[[#This Row],[Budget]],ChargesExploitation[[#This Row],[Budget]]<0),-((ChargesExploitation[[#This Row],[Période actuelle]]/ChargesExploitation[[#This Row],[Budget]])-1),(ChargesExploitation[[#This Row],[Période actuelle]]/ChargesExploitation[[#This Row],[Budget]])-1))),\"-\")","v":{"v":0,"d":"0.00%"}}]
[null,"Ventes et marketing","Autres dépenses (précisez)",{"$nulls":3},{"$f":"IFERROR(IF(Recettes_ventes=0,\"-\",ChargesExploitation[Période actuelle]/Recettes_ventes),\"-\")","v":"-"},{"$f":"IFERROR(IF(ChargesExploitation[[#This Row],[Période précédente]]=ChargesExploitation[[#This Row],[Période actuelle]],0,IF(ChargesExploitation[[#This Row],[Période actuelle]]>ChargesExploitation[[#This Row],[Période précédente]],ABS((ChargesExploitation[[#This Row],[Période actuelle]]/ChargesExploitation[[#This Row],[Période précédente]])-1),IF(AND(ChargesExploitation[[#This Row],[Période actuelle]]<ChargesExploitation[[#This Row],[Période précédente]],ChargesExploitation[[#This Row],[Période précédente]]<0),-((ChargesExploitation[[#This Row],[Période actuelle]]/ChargesExploitation[[#This Row],[Période précédente]])-1),(ChargesExploitation[[#This Row],[Période actuelle]]/ChargesExploitation[[#This Row],[Période précédente]])-1))),\"-\")","v":{"v":0,"d":"0.00%"}},{"$f":"IFERROR(IF(ChargesExploitation[[#This Row],[Budget]]=ChargesExploitation[[#This Row],[Période actuelle]],0,IF(ChargesExploitation[[#This Row],[Période actuelle]]>ChargesExploitation[[#This Row],[Budget]],ABS((ChargesExploitation[[#This Row],[Période actuelle]]/ChargesExploitation[[#This Row],[Budget]])-1),IF(AND(ChargesExploitation[[#This Row],[Période actuelle]]<ChargesExploitation[[#This Row],[Budget]],ChargesExploitation[[#This Row],[Budget]]<0),-((ChargesExploitation[[#This Row],[Période actuelle]]/ChargesExploitation[[#This Row],[Budget]])-1),(ChargesExploitation[[#This Row],[Période actuelle]]/ChargesExploitation[[#This Row],[Budget]])-1))),\"-\")","v":{"v":0,"d":"0.00%"}}]
[null,"Recherche et développement","Licences de technologie",{"$nulls":3},{"$f":"IFERROR(IF(Recettes_ventes=0,\"-\",ChargesExploitation[Période actuelle]/Recettes_ventes),\"-\")","v":"-"},{"$f":"IFERROR(IF(ChargesExploitation[[#This Row],[Période précédente]]=ChargesExploitation[[#This Row],[Période actuelle]],0,IF(ChargesExploitation[[#This Row],[Période actuelle]]>ChargesExploitation[[#This Row],[Période précédente]],ABS((ChargesExploitation[[#This Row],[Période actuelle]]/ChargesExploitation[[#This Row],[Période précédente]])-1),IF(AND(ChargesExploitation[[#This Row],[Période actuelle]]<ChargesExploitation[[#This Row],[Période précédente]],ChargesExploitation[[#This Row],[Période précédente]]<0),-((ChargesExploitation[[#This Row],[Période actuelle]]/ChargesExploitation[[#This Row],[Période précédente]])-1),(ChargesExploitation[[#This Row],[Période actuelle]]/ChargesExploitation[[#This Row],[Période précédente]])-1))),\"-\")","v":{"v":0,"d":"0.00%"}},{"$f":"IFERROR(IF(ChargesExploitation[[#This Row],[Budget]]=ChargesExploitation[[#This Row],[Période actuelle]],0,IF(ChargesExploitation[[#This Row],[Période actuelle]]>ChargesExploitation[[#This Row],[Budget]],ABS((ChargesExploitation[[#This Row],[Période actuelle]]/ChargesExploitation[[#This Row],[Budget]])-1),IF(AND(ChargesExploitation[[#This Row],[Période actuelle]]<ChargesExploitation[[#This Row],[Budget]],ChargesExploitation[[#This Row],[Budget]]<0),-((ChargesExploitation[[#This Row],[Période actuelle]]/ChargesExploitation[[#This Row],[Budget]])-1),(ChargesExploitation[[#This Row],[Période actuelle]]/ChargesExploitation[[#This Row],[Budget]])-1))),\"-\")","v":{"v":0,"d":"0.00%"}}]
[null,"Recherche et développement","Brevets ",{"$nulls":3},{"$f":"IFERROR(IF(Recettes_ventes=0,\"-\",ChargesExploitation[Période actuelle]/Recettes_ventes),\"-\")","v":"-"},{"$f":"IFERROR(IF(ChargesExploitation[[#This Row],[Période précédente]]=ChargesExploitation[[#This Row],[Période actuelle]],0,IF(ChargesExploitation[[#This Row],[Période actuelle]]>ChargesExploitation[[#This Row],[Période précédente]],ABS((ChargesExploitation[[#This Row],[Période actuelle]]/ChargesExploitation[[#This Row],[Période précédente]])-1),IF(AND(ChargesExploitation[[#This Row],[Période actuelle]]<ChargesExploitation[[#This Row],[Période précédente]],ChargesExploitation[[#This Row],[Période précédente]]<0),-((ChargesExploitation[[#This Row],[Période actuelle]]/ChargesExploitation[[#This Row],[Période précédente]])-1),(ChargesExploitation[[#This Row],[Période actuelle]]/ChargesExploitation[[#This Row],[Période précédente]])-1))),\"-\")","v":{"v":0,"d":"0.00%"}},{"$f":"IFERROR(IF(ChargesExploitation[[#This Row],[Budget]]=ChargesExploitation[[#This Row],[Période actuelle]],0,IF(ChargesExploitation[[#This Row],[Période actuelle]]>ChargesExploitation[[#This Row],[Budget]],ABS((ChargesExploitation[[#This Row],[Période actuelle]]/ChargesExploitation[[#This Row],[Budget]])-1),IF(AND(ChargesExploitation[[#This Row],[Période actuelle]]<ChargesExploitation[[#This Row],[Budget]],ChargesExploitation[[#This Row],[Budget]]<0),-((ChargesExploitation[[#This Row],[Période actuelle]]/ChargesExploitation[[#This Row],[Budget]])-1),(ChargesExploitation[[#This Row],[Période actuelle]]/ChargesExploitation[[#This Row],[Budget]])-1))),\"-\")","v":{"v":0,"d":"0.00%"}}]
[null,"Recherche et développement","Autres dépenses (précisez)",{"$nulls":3},{"$f":"IFERROR(IF(Recettes_ventes=0,\"-\",ChargesExploitation[Période actuelle]/Recettes_ventes),\"-\")","v":"-"},{"$f":"IFERROR(IF(ChargesExploitation[[#This Row],[Période précédente]]=ChargesExploitation[[#This Row],[Période actuelle]],0,IF(ChargesExploitation[[#This Row],[Période actuelle]]>ChargesExploitation[[#This Row],[Période précédente]],ABS((ChargesExploitation[[#This Row],[Période actuelle]]/ChargesExploitation[[#This Row],[Période précédente]])-1),IF(AND(ChargesExploitation[[#This Row],[Période actuelle]]<ChargesExploitation[[#This Row],[Période précédente]],ChargesExploitation[[#This Row],[Période précédente]]<0),-((ChargesExploitation[[#This Row],[Période actuelle]]/ChargesExploitation[[#This Row],[Période précédente]])-1),(ChargesExploitation[[#This Row],[Période actuelle]]/ChargesExploitation[[#This Row],[Période précédente]])-1))),\"-\")","v":{"v":0,"d":"0.00%"}},{"$f":"IFERROR(IF(ChargesExploitation[[#This Row],[Budget]]=ChargesExploitation[[#This Row],[Période actuelle]],0,IF(ChargesExploitation[[#This Row],[Période actuelle]]>ChargesExploitation[[#This Row],[Budget]],ABS((ChargesExploitation[[#This Row],[Période actuelle]]/ChargesExploitation[[#This Row],[Budget]])-1),IF(AND(ChargesExploitation[[#This Row],[Période actuelle]]<ChargesExploitation[[#This Row],[Budget]],ChargesExploitation[[#This Row],[Budget]]<0),-((ChargesExploitation[[#This Row],[Période actuelle]]/ChargesExploitation[[#This Row],[Budget]])-1),(ChargesExploitation[[#This Row],[Période actuelle]]/ChargesExploitation[[#This Row],[Budget]])-1))),\"-\")","v":{"v":0,"d":"0.00%"}}]
[null,"Recherche et développement","Autres dépenses (précisez)",{"$nulls":3},{"$f":"IFERROR(IF(Recettes_ventes=0,\"-\",ChargesExploitation[Période actuelle]/Recettes_ventes),\"-\")","v":"-"},{"$f":"IFERROR(IF(ChargesExploitation[[#This Row],[Période précédente]]=ChargesExploitation[[#This Row],[Période actuelle]],0,IF(ChargesExploitation[[#This Row],[Période actuelle]]>ChargesExploitation[[#This Row],[Période précédente]],ABS((ChargesExploitation[[#This Row],[Période actuelle]]/ChargesExploitation[[#This Row],[Période précédente]])-1),IF(AND(ChargesExploitation[[#This Row],[Période actuelle]]<ChargesExploitation[[#This Row],[Période précédente]],ChargesExploitation[[#This Row],[Période précédente]]<0),-((ChargesExploitation[[#This Row],[Période actuelle]]/ChargesExploitation[[#This Row],[Période précédente]])-1),(ChargesExploitation[[#This Row],[Période actuelle]]/ChargesExploitation[[#This Row],[Période précédente]])-1))),\"-\")","v":{"v":0,"d":"0.00%"}},{"$f":"IFERROR(IF(ChargesExploitation[[#This Row],[Budget]]=ChargesExploitation[[#This Row],[Période actuelle]],0,IF(ChargesExploitation[[#This Row],[Période actuelle]]>ChargesExploitation[[#This Row],[Budget]],ABS((ChargesExploitation[[#This Row],[Période actuelle]]/ChargesExploitation[[#This Row],[Budget]])-1),IF(AND(ChargesExploitation[[#This Row],[Période actuelle]]<ChargesExploitation[[#This Row],[Budget]],ChargesExploitation[[#This Row],[Budget]]<0),-((ChargesExploitation[[#This Row],[Période actuelle]]/ChargesExploitation[[#This Row],[Budget]])-1),(ChargesExploitation[[#This Row],[Période actuelle]]/ChargesExploitation[[#This Row],[Budget]])-1))),\"-\")","v":{"v":0,"d":"0.00%"}}]
[null,"Frais généraux et d’administration","Salaires et traitements",{"$nulls":3},{"$f":"IFERROR(IF(Recettes_ventes=0,\"-\",ChargesExploitation[Période actuelle]/Recettes_ventes),\"-\")","v":"-"},{"$f":"IFERROR(IF(ChargesExploitation[[#This Row],[Période précédente]]=ChargesExploitation[[#This Row],[Période actuelle]],0,IF(ChargesExploitation[[#This Row],[Période actuelle]]>ChargesExploitation[[#This Row],[Période précédente]],ABS((ChargesExploitation[[#This Row],[Période actuelle]]/ChargesExploitation[[#This Row],[Période précédente]])-1),IF(AND(ChargesExploitation[[#This Row],[Période actuelle]]<ChargesExploitation[[#This Row],[Période précédente]],ChargesExploitation[[#This Row],[Période précédente]]<0),-((ChargesExploitation[[#This Row],[Période actuelle]]/ChargesExploitation[[#This Row],[Période précédente]])-1),(ChargesExploitation[[#This Row],[Période actuelle]]/ChargesExploitation[[#This Row],[Période précédente]])-1))),\"-\")","v":{"v":0,"d":"0.00%"}},{"$f":"IFERROR(IF(ChargesExploitation[[#This Row],[Budget]]=ChargesExploitation[[#This Row],[Période actuelle]],0,IF(ChargesExploitation[[#This Row],[Période actuelle]]>ChargesExploitation[[#This Row],[Budget]],ABS((ChargesExploitation[[#This Row],[Période actuelle]]/ChargesExploitation[[#This Row],[Budget]])-1),IF(AND(ChargesExploitation[[#This Row],[Période actuelle]]<ChargesExploitation[[#This Row],[Budget]],ChargesExploitation[[#This Row],[Budget]]<0),-((ChargesExploitation[[#This Row],[Période actuelle]]/ChargesExploitation[[#This Row],[Budget]])-1),(ChargesExploitation[[#This Row],[Période actuelle]]/ChargesExploitation[[#This Row],[Budget]])-1))),\"-\")","v":{"v":0,"d":"0.00%"}}]
[null,"Frais généraux et d’administration","Services extérieurs",{"$nulls":3},{"$f":"IFERROR(IF(Recettes_ventes=0,\"-\",ChargesExploitation[Période actuelle]/Recettes_ventes),\"-\")","v":"-"},{"$f":"IFERROR(IF(ChargesExploitation[[#This Row],[Période précédente]]=ChargesExploitation[[#This Row],[Période actuelle]],0,IF(ChargesExploitation[[#This Row],[Période actuelle]]>ChargesExploitation[[#This Row],[Période précédente]],ABS((ChargesExploitation[[#This Row],[Période actuelle]]/ChargesExploitation[[#This Row],[Période précédente]])-1),IF(AND(ChargesExploitation[[#This Row],[Période actuelle]]<ChargesExploitation[[#This Row],[Période précédente]],ChargesExploitation[[#This Row],[Période précédente]]<0),-((ChargesExploitation[[#This Row],[Période actuelle]]/ChargesExploitation[[#This Row],[Période précédente]])-1),(ChargesExploitation[[#This Row],[Période actuelle]]/ChargesExploitation[[#This Row],[Période précédente]])-1))),\"-\")","v":{"v":0,"d":"0.00%"}},{"$f":"IFERROR(IF(ChargesExploitation[[#This Row],[Budget]]=ChargesExploitation[[#This Row],[Période actuelle]],0,IF(ChargesExploitation[[#This Row],[Période actuelle]]>ChargesExploitation[[#This Row],[Budget]],ABS((ChargesExploitation[[#This Row],[Période actuelle]]/ChargesExploitation[[#This Row],[Budget]])-1),IF(AND(ChargesExploitation[[#This Row],[Période actuelle]]<ChargesExploitation[[#This Row],[Budget]],ChargesExploitation[[#This Row],[Budget]]<0),-((ChargesExploitation[[#This Row],[Période actuelle]]/ChargesExploitation[[#This Row],[Budget]])-1),(ChargesExploitation[[#This Row],[Période actuelle]]/ChargesExploitation[[#This Row],[Budget]])-1))),\"-\")","v":{"v":0,"d":"0.00%"}}]
[null,"Frais généraux et d’administration","Fournitures",{"$nulls":3},{"$f":"IFERROR(IF(Recettes_ventes=0,\"-\",ChargesExploitation[Période actuelle]/Recettes_ventes),\"-\")","v":"-"},{"$f":"IFERROR(IF(ChargesExploitation[[#This Row],[Période précédente]]=ChargesExploitation[[#This Row],[Période actuelle]],0,IF(ChargesExploitation[[#This Row],[Période actuelle]]>ChargesExploitation[[#This Row],[Période précédente]],ABS((ChargesExploitation[[#This Row],[Période actuelle]]/ChargesExploitation[[#This Row],[Période précédente]])-1),IF(AND(ChargesExploitation[[#This Row],[Période actuelle]]<ChargesExploitation[[#This Row],[Période précédente]],ChargesExploitation[[#This Row],[Période précédente]]<0),-((ChargesExploitation[[#This Row],[Période actuelle]]/ChargesExploitation[[#This Row],[Période précédente]])-1),(ChargesExploitation[[#This Row],[Période actuelle]]/ChargesExploitation[[#This Row],[Période précédente]])-1))),\"-\")","v":{"v":0,"d":"0.00%"}},{"$f":"IFERROR(IF(ChargesExploitation[[#This Row],[Budget]]=ChargesExploitation[[#This Row],[Période actuelle]],0,IF(ChargesExploitation[[#This Row],[Période actuelle]]>ChargesExploitation[[#This Row],[Budget]],ABS((ChargesExploitation[[#This Row],[Période actuelle]]/ChargesExploitation[[#This Row],[Budget]])-1),IF(AND(ChargesExploitation[[#This Row],[Période actuelle]]<ChargesExploitation[[#This Row],[Budget]],ChargesExploitation[[#This Row],[Budget]]<0),-((ChargesExploitation[[#This Row],[Période actuelle]]/ChargesExploitation[[#This Row],[Budget]])-1),(ChargesExploitation[[#This Row],[Période actuelle]]/ChargesExploitation[[#This Row],[Budget]])-1))),\"-\")","v":{"v":0,"d":"0.00%"}}]
[null,"Frais généraux et d’administration","Repas et loisirs",{"$nulls":3},{"$f":"IFERROR(IF(Recettes_ventes=0,\"-\",ChargesExploitation[Période actuelle]/Recettes_ventes),\"-\")","v":"-"},{"$f":"IFERROR(IF(ChargesExploitation[[#This Row],[Période précédente]]=ChargesExploitation[[#This Row],[Période actuelle]],0,IF(ChargesExploitation[[#This Row],[Période actuelle]]>ChargesExploitation[[#This Row],[Période précédente]],ABS((ChargesExploitation[[#This Row],[Période actuelle]]/ChargesExploitation[[#This Row],[Période précédente]])-1),IF(AND(ChargesExploitation[[#This Row],[Période actuelle]]<ChargesExploitation[[#This Row],[Période précédente]],ChargesExploitation[[#This Row],[Période précédente]]<0),-((ChargesExploitation[[#This Row],[Période actuelle]]/ChargesExploitation[[#This Row],[Période précédente]])-1),(ChargesExploitation[[#This Row],[Période actuelle]]/ChargesExploitation[[#This Row],[Période précédente]])-1))),\"-\")","v":{"v":0,"d":"0.00%"}},{"$f":"IFERROR(IF(ChargesExploitation[[#This Row],[Budget]]=ChargesExploitation[[#This Row],[Période actuelle]],0,IF(ChargesExploitation[[#This Row],[Période actuelle]]>ChargesExploitation[[#This Row],[Budget]],ABS((ChargesExploitation[[#This Row],[Période actuelle]]/ChargesExploitation[[#This Row],[Budget]])-1),IF(AND(ChargesExploitation[[#This Row],[Période actuelle]]<ChargesExploitation[[#This Row],[Budget]],ChargesExploitation[[#This Row],[Budget]]<0),-((ChargesExploitation[[#This Row],[Période actuelle]]/ChargesExploitation[[#This Row],[Budget]])-1),(ChargesExploitation[[#This Row],[Période actuelle]]/ChargesExploitation[[#This Row],[Budget]])-1))),\"-\")","v":{"v":0,"d":"0.00%"}}]
[null,"Frais généraux et d’administration","Loyer",{"$nulls":3},{"$f":"IFERROR(IF(Recettes_ventes=0,\"-\",ChargesExploitation[Période actuelle]/Recettes_ventes),\"-\")","v":"-"},{"$f":"IFERROR(IF(ChargesExploitation[[#This Row],[Période précédente]]=ChargesExploitation[[#This Row],[Période actuelle]],0,IF(ChargesExploitation[[#This Row],[Période actuelle]]>ChargesExploitation[[#This Row],[Période précédente]],ABS((ChargesExploitation[[#This Row],[Période actuelle]]/ChargesExploitation[[#This Row],[Période précédente]])-1),IF(AND(ChargesExploitation[[#This Row],[Période actuelle]]<ChargesExploitation[[#This Row],[Période précédente]],ChargesExploitation[[#This Row],[Période précédente]]<0),-((ChargesExploitation[[#This Row],[Période actuelle]]/ChargesExploitation[[#This Row],[Période précédente]])-1),(ChargesExploitation[[#This Row],[Période actuelle]]/ChargesExploitation[[#This Row],[Période précédente]])-1))),\"-\")","v":{"v":0,"d":"0.00%"}},{"$f":"IFERROR(IF(ChargesExploitation[[#This Row],[Budget]]=ChargesExploitation[[#This Row],[Période actuelle]],0,IF(ChargesExploitation[[#This Row],[Période actuelle]]>ChargesExploitation[[#This Row],[Budget]],ABS((ChargesExploitation[[#This Row],[Période actuelle]]/ChargesExploitation[[#This Row],[Budget]])-1),IF(AND(ChargesExploitation[[#This Row],[Période actuelle]]<ChargesExploitation[[#This Row],[Budget]],ChargesExploitation[[#This Row],[Budget]]<0),-((ChargesExploitation[[#This Row],[Période actuelle]]/ChargesExploitation[[#This Row],[Budget]])-1),(ChargesExploitation[[#This Row],[Période actuelle]]/ChargesExploitation[[#This Row],[Budget]])-1))),\"-\")","v":{"v":0,"d":"0.00%"}}]
[null,"Frais généraux et d’administration","Téléphone",{"$nulls":3},{"$f":"IFERROR(IF(Recettes_ventes=0,\"-\",ChargesExploitation[Période actuelle]/Recettes_ventes),\"-\")","v":"-"},{"$f":"IFERROR(IF(ChargesExploitation[[#This Row],[Période précédente]]=ChargesExploitation[[#This Row],[Période actuelle]],0,IF(ChargesExploitation[[#This Row],[Période actuelle]]>ChargesExploitation[[#This Row],[Période précédente]],ABS((ChargesExploitation[[#This Row],[Période actuelle]]/ChargesExploitation[[#This Row],[Période précédente]])-1),IF(AND(ChargesExploitation[[#This Row],[Période actuelle]]<ChargesExploitation[[#This Row],[Période précédente]],ChargesExploitation[[#This Row],[Période précédente]]<0),-((ChargesExploitation[[#This Row],[Période actuelle]]/ChargesExploitation[[#This Row],[Période précédente]])-1),(ChargesExploitation[[#This Row],[Période actuelle]]/ChargesExploitation[[#This Row],[Période précédente]])-1))),\"-\")","v":{"v":0,"d":"0.00%"}},{"$f":"IFERROR(IF(ChargesExploitation[[#This Row],[Budget]]=ChargesExploitation[[#This Row],[Période actuelle]],0,IF(ChargesExploitation[[#This Row],[Période actuelle]]>ChargesExploitation[[#This Row],[Budget]],ABS((ChargesExploitation[[#This Row],[Période actuelle]]/ChargesExploitation[[#This Row],[Budget]])-1),IF(AND(ChargesExploitation[[#This Row],[Période actuelle]]<ChargesExploitation[[#This Row],[Budget]],ChargesExploitation[[#This Row],[Budget]]<0),-((ChargesExploitation[[#This Row],[Période actuelle]]/ChargesExploitation[[#This Row],[Budget]])-1),(ChargesExploitation[[#This Row],[Période actuelle]]/ChargesExploitation[[#This Row],[Budget]])-1))),\"-\")","v":{"v":0,"d":"0.00%"}}]
[null,"Frais généraux et d’administration","Charges",{"$nulls":3},{"$f":"IFERROR(IF(Recettes_ventes=0,\"-\",ChargesExploitation[Période actuelle]/Recettes_ventes),\"-\")","v":"-"},{"$f":"IFERROR(IF(ChargesExploitation[[#This Row],[Période précédente]]=ChargesExploitation[[#This Row],[Période actuelle]],0,IF(ChargesExploitation[[#This Row],[Période actuelle]]>ChargesExploitation[[#This Row],[Période précédente]],ABS((ChargesExploitation[[#This Row],[Période actuelle]]/ChargesExploitation[[#This Row],[Période précédente]])-1),IF(AND(ChargesExploitation[[#This Row],[Période actuelle]]<ChargesExploitation[[#This Row],[Période précédente]],ChargesExploitation[[#This Row],[Période précédente]]<0),-((ChargesExploitation[[#This Row],[Période actuelle]]/ChargesExploitation[[#This Row],[Période précédente]])-1),(ChargesExploitation[[#This Row],[Période actuelle]]/ChargesExploitation[[#This Row],[Période précédente]])-1))),\"-\")","v":{"v":0,"d":"0.00%"}},{"$f":"IFERROR(IF(ChargesExploitation[[#This Row],[Budget]]=ChargesExploitation[[#This Row],[Période actuelle]],0,IF(ChargesExploitation[[#This Row],[Période actuelle]]>ChargesExploitation[[#This Row],[Budget]],ABS((ChargesExploitation[[#This Row],[Période actuelle]]/ChargesExploitation[[#This Row],[Budget]])-1),IF(AND(ChargesExploitation[[#This Row],[Période actuelle]]<ChargesExploitation[[#This Row],[Budget]],ChargesExploitation[[#This Row],[Budget]]<0),-((ChargesExploitation[[#This Row],[Période actuelle]]/ChargesExploitation[[#This Row],[Budget]])-1),(ChargesExploitation[[#This Row],[Période actuelle]]/ChargesExploitation[[#This Row],[Budget]])-1))),\"-\")","v":{"v":0,"d":"0.00%"}}]
[null,"Frais généraux et d’administration","Amortissement",{"$nulls":3},{"$f":"IFERROR(IF(Recettes_ventes=0,\"-\",ChargesExploitation[Période actuelle]/Recettes_ventes),\"-\")","v":"-"},{"$f":"IFERROR(IF(ChargesExploitation[[#This Row],[Période précédente]]=ChargesExploitation[[#This Row],[Période actuelle]],0,IF(ChargesExploitation[[#This Row],[Période actuelle]]>ChargesExploitation[[#This Row],[Période précédente]],ABS((ChargesExploitation[[#This Row],[Période actuelle]]/ChargesExploitation[[#This Row],[Période précédente]])-1),IF(AND(ChargesExploitation[[#This Row],[Période actuelle]]<ChargesExploitation[[#This Row],[Période précédente]],ChargesExploitation[[#This Row],[Période précédente]]<0),-((ChargesExploitation[[#This Row],[Période actuelle]]/ChargesExploitation[[#This Row],[Période précédente]])-1),(ChargesExploitation[[#This Row],[Période actuelle]]/ChargesExploitation[[#This Row],[Période précédente]])-1))),\"-\")","v":{"v":0,"d":"0.00%"}},{"$f":"IFERROR(IF(ChargesExploitation[[#This Row],[Budget]]=ChargesExploitation[[#This Row],[Période actuelle]],0,IF(ChargesExploitation[[#This Row],[Période actuelle]]>ChargesExploitation[[#This Row],[Budget]],ABS((ChargesExploitation[[#This Row],[Période actuelle]]/ChargesExploitation[[#This Row],[Budget]])-1),IF(AND(ChargesExploitation[[#This Row],[Période actuelle]]<ChargesExploitation[[#This Row],[Budget]],ChargesExploitation[[#This Row],[Budget]]<0),-((ChargesExploitation[[#This Row],[Période actuelle]]/ChargesExploitation[[#This Row],[Budget]])-1),(ChargesExploitation[[#This Row],[Période actuelle]]/ChargesExploitation[[#This Row],[Budget]])-1))),\"-\")","v":{"v":0,"d":"0.00%"}}]
[null,"Frais généraux et d’administration","Assurance",{"$nulls":3},{"$f":"IFERROR(IF(Recettes_ventes=0,\"-\",ChargesExploitation[Période actuelle]/Recettes_ventes),\"-\")","v":"-"},{"$f":"IFERROR(IF(ChargesExploitation[[#This Row],[Période précédente]]=ChargesExploitation[[#This Row],[Période actuelle]],0,IF(ChargesExploitation[[#This Row],[Période actuelle]]>ChargesExploitation[[#This Row],[Période précédente]],ABS((ChargesExploitation[[#This Row],[Période actuelle]]/ChargesExploitation[[#This Row],[Période précédente]])-1),IF(AND(ChargesExploitation[[#This Row],[Période actuelle]]<ChargesExploitation[[#This Row],[Période précédente]],ChargesExploitation[[#This Row],[Période précédente]]<0),-((ChargesExploitation[[#This Row],[Période actuelle]]/ChargesExploitation[[#This Row],[Période précédente]])-1),(ChargesExploitation[[#This Row],[Période actuelle]]/ChargesExploitation[[#This Row],[Période précédente]])-1))),\"-\")","v":{"v":0,"d":"0.00%"}},{"$f":"IFERROR(IF(ChargesExploitation[[#This Row],[Budget]]=ChargesExploitation[[#This Row],[Période actuelle]],0,IF(ChargesExploitation[[#This Row],[Période actuelle]]>ChargesExploitation[[#This Row],[Budget]],ABS((ChargesExploitation[[#This Row],[Période actuelle]]/ChargesExploitation[[#This Row],[Budget]])-1),IF(AND(ChargesExploitation[[#This Row],[Période actuelle]]<ChargesExploitation[[#This Row],[Budget]],ChargesExploitation[[#This Row],[Budget]]<0),-((ChargesExploitation[[#This Row],[Période actuelle]]/ChargesExploitation[[#This Row],[Budget]])-1),(ChargesExploitation[[#This Row],[Période actuelle]]/ChargesExploitation[[#This Row],[Budget]])-1))),\"-\")","v":{"v":0,"d":"0.00%"}}]
[null,"Frais généraux et d’administration","Réparations et entretien",{"$nulls":3},{"$f":"IFERROR(IF(Recettes_ventes=0,\"-\",ChargesExploitation[Période actuelle]/Recettes_ventes),\"-\")","v":"-"},{"$f":"IFERROR(IF(ChargesExploitation[[#This Row],[Période précédente]]=ChargesExploitation[[#This Row],[Période actuelle]],0,IF(ChargesExploitation[[#This Row],[Période actuelle]]>ChargesExploitation[[#This Row],[Période précédente]],ABS((ChargesExploitation[[#This Row],[Période actuelle]]/ChargesExploitation[[#This Row],[Période précédente]])-1),IF(AND(ChargesExploitation[[#This Row],[Période actuelle]]<ChargesExploitation[[#This Row],[Période précédente]],ChargesExploitation[[#This Row],[Période précédente]]<0),-((ChargesExploitation[[#This Row],[Période actuelle]]/ChargesExploitation[[#This Row],[Période précédente]])-1),(ChargesExploitation[[#This Row],[Période actuelle]]/ChargesExploitation[[#This Row],[Période précédente]])-1))),\"-\")","v":{"v":0,"d":"0.00%"}},{"$f":"IFERROR(IF(ChargesExploitation[[#This Row],[Budget]]=ChargesExploitation[[#This Row],[Période actuelle]],0,IF(ChargesExploitation[[#This Row],[Période actuelle]]>ChargesExploitation[[#This Row],[Budget]],ABS((ChargesExploitation[[#This Row],[Période actuelle]]/ChargesExploitation[[#This Row],[Budget]])-1),IF(AND(ChargesExploitation[[#This Row],[Période actuelle]]<ChargesExploitation[[#This Row],[Budget]],ChargesExploitation[[#This Row],[Budget]]<0),-((ChargesExploitation[[#This Row],[Période actuelle]]/ChargesExploitation[[#This Row],[Budget]])-1),(ChargesExploitation[[#This Row],[Période actuelle]]/ChargesExploitation[[#This Row],[Budget]])-1))),\"-\")","v":{"v":0,"d":"0.00%"}}]
[null,"Frais généraux et d’administration","Autres dépenses (précisez)",{"$nulls":3},{"$f":"IFERROR(IF(Recettes_ventes=0,\"-\",ChargesExploitation[Période actuelle]/Recettes_ventes),\"-\")","v":"-"},{"$f":"IFERROR(IF(ChargesExploitation[[#This Row],[Période précédente]]=ChargesExploitation[[#This Row],[Période actuelle]],0,IF(ChargesExploitation[[#This Row],[Période actuelle]]>ChargesExploitation[[#This Row],[Période précédente]],ABS((ChargesExploitation[[#This Row],[Période actuelle]]/ChargesExploitation[[#This Row],[Période précédente]])-1),IF(AND(ChargesExploitation[[#This Row],[Période actuelle]]<ChargesExploitation[[#This Row],[Période précédente]],ChargesExploitation[[#This Row],[Période précédente]]<0),-((ChargesExploitation[[#This Row],[Période actuelle]]/ChargesExploitation[[#This Row],[Période précédente]])-1),(ChargesExploitation[[#This Row],[Période actuelle]]/ChargesExploitation[[#This Row],[Période précédente]])-1))),\"-\")","v":{"v":0,"d":"0.00%"}},{"$f":"IFERROR(IF(ChargesExploitation[[#This Row],[Budget]]=ChargesExploitation[[#This Row],[Période actuelle]],0,IF(ChargesExploitation[[#This Row],[Période actuelle]]>ChargesExploitation[[#This Row],[Budget]],ABS((ChargesExploitation[[#This Row],[Période actuelle]]/ChargesExploitation[[#This Row],[Budget]])-1),IF(AND(ChargesExploitation[[#This Row],[Période actuelle]]<ChargesExploitation[[#This Row],[Budget]],ChargesExploitation[[#This Row],[Budget]]<0),-((ChargesExploitation[[#This Row],[Période actuelle]]/ChargesExploitation[[#This Row],[Budget]])-1),(ChargesExploitation[[#This Row],[Période actuelle]]/ChargesExploitation[[#This Row],[Budget]])-1))),\"-\")","v":{"v":0,"d":"0.00%"}}]
[null,"Frais généraux et d’administration","Autres dépenses (précisez)",{"$nulls":3},{"$f":"IFERROR(IF(Recettes_ventes=0,\"-\",ChargesExploitation[Période actuelle]/Recettes_ventes),\"-\")","v":"-"},{"$f":"IFERROR(IF(ChargesExploitation[[#This Row],[Période précédente]]=ChargesExploitation[[#This Row],[Période actuelle]],0,IF(ChargesExploitation[[#This Row],[Période actuelle]]>ChargesExploitation[[#This Row],[Période précédente]],ABS((ChargesExploitation[[#This Row],[Période actuelle]]/ChargesExploitation[[#This Row],[Période précédente]])-1),IF(AND(ChargesExploitation[[#This Row],[Période actuelle]]<ChargesExploitation[[#This Row],[Période précédente]],ChargesExploitation[[#This Row],[Période précédente]]<0),-((ChargesExploitation[[#This Row],[Période actuelle]]/ChargesExploitation[[#This Row],[Période précédente]])-1),(ChargesExploitation[[#This Row],[Période actuelle]]/ChargesExploitation[[#This Row],[Période précédente]])-1))),\"-\")","v":{"v":0,"d":"0.00%"}},{"$f":"IFERROR(IF(ChargesExploitation[[#This Row],[Budget]]=ChargesExploitation[[#This Row],[Période actuelle]],0,IF(ChargesExploitation[[#This Row],[Période actuelle]]>ChargesExploitation[[#This Row],[Budget]],ABS((ChargesExploitation[[#This Row],[Période actuelle]]/ChargesExploitation[[#This Row],[Budget]])-1),IF(AND(ChargesExploitation[[#This Row],[Période actuelle]]<ChargesExploitation[[#This Row],[Budget]],ChargesExploitation[[#This Row],[Budget]]<0),-((ChargesExploitation[[#This Row],[Période actuelle]]/ChargesExploitation[[#This Row],[Budget]])-1),(ChargesExploitation[[#This Row],[Période actuelle]]/ChargesExploitation[[#This Row],[Budget]])-1))),\"-\")","v":{"v":0,"d":"0.00%"}}]
[null,"Total des charges d’exploitation",null,{"$f":"SUBTOTAL(109,ChargesExploitation[Période précédente])","v":0},{"$f":"SUBTOTAL(109,ChargesExploitation[Budget])","v":0},{"$f":"SUBTOTAL(109,ChargesExploitation[Période actuelle])","v":0},{"$f":"SUBTOTAL(109,ChargesExploitation[Période actuelle en pourcentage des ventes])","v":{"v":0,"d":"0.00%"}},{"$f":"SUBTOTAL(109,ChargesExploitation[Pourcentage de changement par rapport à la période précédente])","v":{"v":0,"d":"0.00%"}},{"$f":"SUBTOTAL(109,ChargesExploitation[Pourcentage de changement par rapport au budget])","v":{"v":0,"d":"0.00%"}}]

{"sheet":"Taxes","index":4,"n_rows":10,"n_cols":9,"rows_kept":10,"merged":[[0,7,2,8]]}
[null,{"$f":"Titre_Classeur","v":"Compte de résultat"}]
[null,{"$f":"Nom_société","v":"Nom de la société"},"Exprimé en milliers"]
[null,"Taxes",{"$f":"IFERROR(Taxes[[#Totals],[Période actuelle]],\"-\")","v":0}]
[null,"Type","Description","Période précédente","Budget","Période actuelle","Période actuelle en pourcentage des ventes","Pourcentage de changement par rapport à la période précédente","Pourcentage de changement par rapport au budget"]
[null,"Taxes","Impôts sur le revenu",{"$nulls":3},{"$f":"IFERROR(IF(Recettes_ventes=0,\"-\",Taxes[Période actuelle]/Recettes_ventes),\"-\")","v":"-"},{"$f":"IFERROR(IF(Taxes[[#This Row],[Période précédente]]=Taxes[[#This Row],[Période actuelle]],0,IF(Taxes[[#This Row],[Période actuelle]]>Taxes[[#This Row],[Période précédente]],ABS((Taxes[[#This Row],[Période actuelle]]/Taxes[[#This Row],[Période précédente]])-1),IF(AND(Taxes[[#This Row],[Période actuelle]]<Taxes[[#This Row],[Période précédente]],Taxes[[#This Row],[Période précédente]]<0),-((Taxes[[#This Row],[Période actuelle]]/Taxes[[#This Row],[Période précédente]])-1),(Taxes[[#This Row],[Période actuelle]]/Taxes[[#This Row],[Période précédente]])-1))),\"-\")","v":{"v":0,"d":"0.00%"}},{"$f":"IFERROR(IF(Taxes[[#This Row],[Budget]]=Taxes[[#This Row],[Période actuelle]],0,IF(Taxes[[#This Row],[Période actuelle]]>Taxes[[#This Row],[Budget]],ABS((Taxes[[#This Row],[Période actuelle]]/Taxes[[#This Row],[Budget]])-1),IF(AND(Taxes[[#This Row],[Période actuelle]]<Taxes[[#This Row],[Budget]],Taxes[[#This Row],[Budget]]<0),-((Taxes[[#This Row],[Période actuelle]]/Taxes[[#This Row],[Budget]])-1),(Taxes[[#This Row],[Période actuelle]]/Taxes[[#This Row],[Budget]])-1))),\"-\")","v":{"v":0,"d":"0.00%"}}]
[null,"Taxes","Impôts sur les salaires",{"$nulls":3},{"$f":"IFERROR(IF(Recettes_ventes=0,\"-\",Taxes[Période actuelle]/Recettes_ventes),\"-\")","v":"-"},{"$f":"IFERROR(IF(Taxes[[#This Row],[Période précédente]]=Taxes[[#This Row],[Période actuelle]],0,IF(Taxes[[#This Row],[Période actuelle]]>Taxes[[#This Row],[Période précédente]],ABS((Taxes[[#This Row],[Période actuelle]]/Taxes[[#This Row],[Période précédente]])-1),IF(AND(Taxes[[#This Row],[Période actuelle]]<Taxes[[#This Row],[Période précédente]],Taxes[[#This Row],[Période précédente]]<0),-((Taxes[[#This Row],[Période actuelle]]/Taxes[[#This Row],[Période précédente]])-1),(Taxes[[#This Row],[Période actuelle]]/Taxes[[#This Row],[Période précédente]])-1))),\"-\")","v":{"v":0,"d":"0.00%"}},{"$f":"IFERROR(IF(Taxes[[#This Row],[Budget]]=Taxes[[#This Row],[Période actuelle]],0,IF(Taxes[[#This Row],[Période actuelle]]>Taxes[[#This Row],[Budget]],ABS((Taxes[[#This Row],[Période actuelle]]/Taxes[[#This Row],[Budget]])-1),IF(AND(Taxes[[#This Row],[Période actuelle]]<Taxes[[#This Row],[Budget]],Taxes[[#This Row],[Budget]]<0),-((Taxes[[#This Row],[Période actuelle]]/Taxes[[#This Row],[Budget]])-1),(Taxes[[#This Row],[Période actuelle]]/Taxes[[#This Row],[Budget]])-1))),\"-\")","v":{"v":0,"d":"0.00%"}}]
[null,"Taxes","Taxes foncières",{"$nulls":3},{"$f":"IFERROR(IF(Recettes_ventes=0,\"-\",Taxes[Période actuelle]/Recettes_ventes),\"-\")","v":"-"},{"$f":"IFERROR(IF(Taxes[[#This Row],[Période précédente]]=Taxes[[#This Row],[Période actuelle]],0,IF(Taxes[[#This Row],[Période actuelle]]>Taxes[[#This Row],[Période précédente]],ABS((Taxes[[#This Row],[Période actuelle]]/Taxes[[#This Row],[Période précédente]])-1),IF(AND(Taxes[[#This Row],[Période actuelle]]<Taxes[[#This Row],[Période précédente]],Taxes[[#This Row],[Période précédente]]<0),-((Taxes[[#This Row],[Période actuelle]]/Taxes[[#This Row],[Période précédente]])-1),(Taxes[[#This Row],[Période actuelle]]/Taxes[[#This Row],[Période précédente]])-1))),\"-\")","v":{"v":0,"d":"0.00%"}},{"$f":"IFERROR(IF(Taxes[[#This Row],[Budget]]=Taxes[[#This Row],[Période actuelle]],0,IF(Taxes[[#This Row],[Période actuelle]]>Taxes[[#This Row],[Budget]],ABS((Taxes[[#This Row],[Période actuelle]]/Taxes[[#This Row],[Budget]])-1),IF(AND(Taxes[[#This Row],[Période actuelle]]<Taxes[[#This Row],[Budget]],Taxes[[#This Row],[Budget]]<0),-((Taxes[[#This Row],[Période actuelle]]/Taxes[[#This Row],[Budget]])-1),(Taxes[[#This Row],[Période actuelle]]/Taxes[[#This Row],[Budget]])-1))),\"-\")","v":{"v":0,"d":"0.00%"}}]
[null,"Taxes","Autres taxes (spécifier)",{"$nulls":3},{"$f":"IFERROR(IF(Recettes_ventes=0,\"-\",Taxes[Période actuelle]/Recettes_ventes),\"-\")","v":"-"},{"$f":"IFERROR(IF(Taxes[[#This Row],[Période précédente]]=Taxes[[#This Row],[Période actuelle]],0,IF(Taxes[[#This Row],[Période actuelle]]>Taxes[[#This Row],[Période précédente]],ABS((Taxes[[#This Row],[Période actuelle]]/Taxes[[#This Row],[Période précédente]])-1),IF(AND(Taxes[[#This Row],[Période actuelle]]<Taxes[[#This Row],[Période précédente]],Taxes[[#This Row],[Période précédente]]<0),-((Taxes[[#This Row],[Période actuelle]]/Taxes[[#This Row],[Période précédente]])-1),(Taxes[[#This Row],[Période actuelle]]/Taxes[[#This Row],[Période précédente]])-1))),\"-\")","v":{"v":0,"d":"0.00%"}},{"$f":"IFERROR(IF(Taxes[[#This Row],[Budget]]=Taxes[[#This Row],[Période actuelle]],0,IF(Taxes[[#This Row],[Période actuelle]]>Taxes[[#This Row],[Budget]],ABS((Taxes[[#This Row],[Période actuelle]]/Taxes[[#This Row],[Budget]])-1),IF(AND(Taxes[[#This Row],[Période actuelle]]<Taxes[[#This Row],[Budget]],Taxes[[#This Row],[Budget]]<0),-((Taxes[[#This Row],[Période actuelle]]/Taxes[[#This Row],[Budget]])-1),(Taxes[[#This Row],[Période actuelle]]/Taxes[[#This Row],[Budget]])-1))),\"-\")","v":{"v":0,"d":"0.00%"}}]
[null,"Taxes","Autres taxes (spécifier)",{"$nulls":3},{"$f":"IFERROR(IF(Recettes_ventes=0,\"-\",Taxes[Période actuelle]/Recettes_ventes),\"-\")","v":"-"},{"$f":"IFERROR(IF(Taxes[[#This Row],[Période précédente]]=Taxes[[#This Row],[Période actuelle]],0,IF(Taxes[[#This Row],[Période actuelle]]>Taxes[[#This Row],[Période précédente]],ABS((Taxes[[#This Row],[Période actuelle]]/Taxes[[#This Row],[Période précédente]])-1),IF(AND(Taxes[[#This Row],[Période actuelle]]<Taxes[[#This Row],[Période précédente]],Taxes[[#This Row],[Période précédente]]<0),-((Taxes[[#This Row],[Période actuelle]]/Taxes[[#This Row],[Période précédente]])-1),(Taxes[[#This Row],[Période actuelle]]/Taxes[[#This Row],[Période précédente]])-1))),\"-\")","v":{"v":0,"d":"0.00%"}},{"$f":"IFERROR(IF(Taxes[[#This Row],[Budget]]=Taxes[[#This Row],[Période actuelle]],0,IF(Taxes[[#This Row],[Période actuelle]]>Taxes[[#This Row],[Budget]],ABS((Taxes[[#This Row],[Période actuelle]]/Taxes[[#This Row],[Budget]])-1),IF(AND(Taxes[[#This Row],[Période actuelle]]<Taxes[[#This Row],[Budget]],Taxes[[#This Row],[Budget]]<0),-((Taxes[[#This Row],[Période actuelle]]/Taxes[[#This Row],[Budget]])-1),(Taxes[[#This Row],[Période actuelle]]/Taxes[[#This Row],[Budget]])-1))),\"-\")","v":{"v":0,"d":"0.00%"}}]
[null,"Total des taxes",null,{"$f":"SUBTOTAL(109,Taxes[Période précédente])","v":0},{"$f":"SUBTOTAL(109,Taxes[Budget])","v":0},{"$f":"SUBTOTAL(109,Taxes[Période actuelle])","v":0},{"$f":"IFERROR(SUBTOTAL(109,Taxes[Période actuelle en pourcentage des ventes]),\"-\")","v":{"v":0,"d":"0.00%"}},{"$f":"SUBTOTAL(109,Taxes[Pourcentage de changement par rapport à la période précédente])","v":{"v":0,"d":"0.00%"}},{"$f":"SUBTOTAL(109,Taxes[Pourcentage de changement par rapport au budget])","v":{"v":0,"d":"0.00%"}}]

{"sheet":"Catégories","index":5,"n_rows":8,"n_cols":2,"rows_kept":8}
[null,"Catégories"]
[null,"Recettes de ventes"]
[null,"Coût des ventes"]
[null,"Revenus"]
[null,"Ventes et marketing"]
[null,"Recherche et développement"]
[null,"Frais généraux et d’administration"]
[null,"Taxes"]